fUSD/lending_fUSD_20240212
["ID","MTS","AMOUNT","RATE_DAILY","PERIOD"]
[313810288,1707733890606,-500.0,0.00024599,2]
[313810289,1707733890615,-2262.56,0.00024599,2]
[313810290,1707733890625,-563.82,0.00024599,2]
[313810291,1707733890635,-588.41,0.00024599,2]
[313810292,1707733890644,-500.0,0.00024599,2]
[313810293,1707733890654,-500.0,0.00024599,2]
[313810294,1707733890663,-1609.22,0.00024599,2]
[313810295,1707733890672,-500.0,0.00024599,2]
[313810296,1707733890682,-807.99,0.00024599,2]
[313810297,1707733890692,-500.0,0.00024599,2]
[313810298,1707733890702,-500.0,0.00024599,2]
[313810299,1707733890713,-519.62,0.00024599,2]
[313810300,1707733890722,-1981.21,0.00024599,2]
[313810301,1707733890732,-500.0,0.00024599,2]
[313810302,1707733890742,-797.72,0.00024599,2]
[313810303,1707733890752,-500.0,0.00024599,2]
[313810304,1707733890762,-671.69,0.00024599,2]
[313810305,1707733890772,-500.0,0.00024599,2]
[313810306,1707733890781,-815.55,0.00024599,2]
[313810307,1707733890791,-729.69,0.00024599,2]
[313810308,1707733890801,-2389.73,0.00024599,2]
[313810309,1707733890810,-718.0,0.00024599,2]
[313810310,1707733890820,-500.0,0.00024599,2]
[313810311,1707733890830,-664.45,0.00024599,2]
[313810312,1707733890842,-788.41,0.00024599,2]
[313810313,1707733890851,-1199.43,0.00024599,2]
[313810314,1707733890861,-500.0,0.00024599,2]
[313810315,1707733890870,-265.54597655,0.00024599,2]
[313810316,1707733890880,-617.79,0.00024599,2]
[313810317,1707733890890,-277.74041478,0.00024599,2]
[313810318,1707733890899,-534.74,0.00024599,2]
[313810319,1707733890910,-13152.32,0.00024599,2]
[313810320,1707733890919,-628.49,0.00024599,2]
[313810321,1707733890929,-627.06,0.00024599,2]
[313810322,1707733890949,-794.39,0.00024599,2]
[313810323,1707733890959,-5987.72,0.00024599,2]
[313810324,1707733890969,-500.0,0.00024599,2]
[313810325,1707733890978,-500.0,0.000246,2]
[313810326,1707733890987,-500.0,0.000246,2]
[313810327,1707733890996,-500.0,0.000246,2]
[313810328,1707733891006,-500.0,0.000246,2]
[313810329,1707733891016,-500.0,0.000246,2]
[313810330,1707733891026,-500.0,0.000246,2]
[313810331,1707733891035,-634.51516699,0.000246,2]
[313810332,1707733891044,-500.0,0.000246,2]
[313810333,1707733891053,-500.0,0.000246,2]
[313810334,1707733891062,-580.7,0.000246,2]
[313810335,1707733891071,-500.0,0.000246,2]
[313810336,1707733891080,-560.16,0.000246,2]
[313810337,1707733891090,-500.0,0.000246,2]
[313810338,1707733891100,-500.0,0.000246,2]
[313810339,1707733891111,-500.0,0.000246,2]
[313810340,1707733891120,-500.0,0.000246,2]
[313810341,1707733891129,-500.0,0.000246,2]
[313810342,1707733891138,-502.1,0.000246,2]
[313810343,1707733891148,-500.0,0.000246,2]
[313810344,1707733891157,-250.0,0.00024658,2]
[313810345,1707733891166,-1500.0,0.000247,2]
[313810346,1707733891176,-400.0,0.00024751,2]
[313810347,1707733891185,-19109.9488,0.00024774,2]
[313810348,1707733891195,-150.01,0.00024798,2]
[313810349,1707733891204,-1104.31251441,0.00024798,2]
[313810350,1707733891213,-200.0,0.00024799,2]
[313810351,1707733891223,-46131.32320405,0.00024799,2]
[313810352,1707733891232,-46131.32320405,0.00024799,2]
[313810353,1707733891241,-2551.78095854,0.000248,2]
[313810354,1707733891250,-1721.0491869,0.00024821,2]
[313810355,1707733891260,-2607.4329476,0.00024821,2]
[313810356,1707733891269,-3601.5815935,0.00024838,2]
[313810357,1707733891278,-4676.0972309,0.00024855,2]
[313810358,1707733891287,-53965.5924353,0.00024855,2]
[313810359,1707733891296,-150.0,0.00024871,2]
[313810360,1707733891305,-150.0,0.00024871,2]
[313810361,1707733891314,-500.0,0.00024872,2]
[313810362,1707733891324,-500.0,0.00024872,2]
[313810363,1707733891333,-500.0,0.00024872,2]
[313810364,1707733891343,-500.0,0.00024872,2]
[313810365,1707733891352,-321.07092123,0.00024872,2]
[313810366,1707733891361,-500.0,0.00024872,2]
[313810367,1707733891370,-500.0,0.00024872,2]
[313810368,1707733891379,-500.0,0.00024872,2]
[313810369,1707733891388,-500.0,0.00024872,2]
[313810370,1707733891397,-500.0,0.00024872,2]
[313810371,1707733891406,-500.0,0.00024872,2]
[313810372,1707733891415,-500.0,0.00024872,2]
[313810373,1707733891424,-317.64516993,0.00024872,2]
[313810374,1707733891433,-500.0,0.00024872,2]
[313810375,1707733891442,-500.0,0.00024872,2]
[313810376,1707733891451,-500.0,0.00024872,2]
[313810377,1707733891461,-500.0,0.00024872,2]
[313810378,1707733891471,-500.0,0.00024872,2]
[313810379,1707733891480,-500.0,0.00024872,2]
[313810380,1707733891489,-500.0,0.00024872,2]
[313810381,1707733891498,-500.0,0.00024872,2]
[313810382,1707733891507,-500.0,0.00024872,2]
[313810383,1707733891516,-500.0,0.00024872,2]
[313810384,1707733891525,-500.0,0.00024872,2]
[313810385,1707733891534,-500.0,0.00024872,2]
[313810386,1707733891543,-500.0,0.00024872,2]
[313810387,1707733891552,-850.96,0.00024872,2]
[313810388,1707733891562,-2929.74,0.00024872,2]
[313810389,1707733891571,-500.0,0.00024872,2]
[313810390,1707733891580,-1465.24,0.00024872,2]
[313810391,1707733891591,-2746.39,0.00024872,2]
[313810392,1707733891600,-3120.44,0.00024872,2]
[313810393,1707733891609,-1968.61,0.00024872,2]
[313810394,1707733891619,-500.0,0.00024872,2]
[313810395,1707733891628,-1245.93,0.00024872,2]
[313810396,1707733891638,-8220.4,0.00024872,2]
[313810397,1707733891647,-834.79,0.00024872,2]
[313810398,1707733891656,-500.0,0.00024872,2]
[313810399,1707733891666,-4043.08,0.00024872,2]
[313810400,1707733891675,-4209.02,0.00024872,2]
[313810401,1707733891684,-500.0,0.00024872,2]
[313810402,1707733891693,-3622.67,0.00024872,2]
[313810403,1707733891702,-30584.48,0.00024872,2]
[313810404,1707733891712,-500.0,0.00024872,2]
[313810405,1707733891722,-500.0,0.00024872,2]
[313810406,1707733891731,-2489.84,0.00024872,2]
[313810407,1707733891741,-500.0,0.00024872,2]
[313810408,1707733891751,-658.01,0.00024872,2]
[313810409,1707733891761,-807.65,0.00024872,2]
[313810410,1707733891771,-500.0,0.00024872,2]
[313810411,1707733891781,-500.0,0.00024872,2]
[313810412,1707733891791,-670.96,0.00024872,2]
[313810413,1707733891800,-500.0,0.00024872,2]
[313810414,1707733891810,-592.04,0.00024872,2]
[313810415,1707733891819,-500.0,0.00024872,2]
[313810416,1707733891829,-500.0,0.00024872,2]
[313810417,1707733891839,-500.0,0.00024872,2]
[313810418,1707733891848,-550.02,0.00024872,2]
[313810419,1707733891858,-5289.57,0.00024872,2]
[313810420,1707733891868,-654.37,0.00024872,2]
[313810421,1707733891878,-500.0,0.00024872,2]
[313810422,1707733891888,-876.87,0.00024872,2]
[313810423,1707733891898,-2205.41,0.00024872,2]
[313810424,1707733891908,-650.89,0.00024872,2]
[313810425,1707733891918,-4539.55,0.00024872,2]
[313810426,1707733891928,-2620.05,0.00024872,2]
[313810427,1707733891938,-806.86,0.00024872,2]
[313810428,1707733891948,-10402.09,0.00024872,2]
[313810429,1707733891958,-1376.01,0.00024872,2]
[313810430,1707733891967,-1175.96,0.00024872,2]
[313810431,1707733891977,-500.0,0.00024872,2]
[313810432,1707733891987,-529.62,0.00024872,2]
[313810433,1707733891997,-829.4,0.00024872,2]
[313810434,1707733892007,-1891.45,0.00024872,2]
[313810435,1707733892017,-2658.88,0.00024872,2]
[313810436,1707733892028,-500.0,0.00024872,2]
[313810437,1707733892038,-3181.3,0.00024872,2]
[313810438,1707733892047,-1134.53,0.00024872,2]
[313810439,1707733892057,-500.0,0.00024872,2]
[313810440,1707733892067,-1360.04,0.00024872,2]
[313810441,1707733892077,-1409.13,0.00024872,2]
[313810442,1707733892087,-15681.69,0.00024872,2]
[313810443,1707733892097,-891.67,0.00024872,2]
[313810444,1707733892107,-656.74,0.00024872,2]
[313810445,1707733892120,-500.0,0.00024872,2]
[313810446,1707733892130,-500.0,0.00024872,2]
[313810447,1707733892139,-1797.29,0.00024872,2]
[313810448,1707733892149,-500.0,0.00024872,2]
[313810449,1707733892161,-5201.79,0.00024872,2]
[313810450,1707733892172,-2360.39,0.00024872,2]
[313810451,1707733892182,-500.0,0.00024872,2]
[313810452,1707733892194,-500.0,0.00024872,2]
[313810453,1707733892203,-2326.7,0.00024872,2]
[313810454,1707733892213,-500.0,0.00024872,2]
[313810455,1707733892223,-559.82,0.00024872,2]
[313810456,1707733892233,-500.0,0.00024872,2]
[313810457,1707733892243,-3297.6,0.00024872,2]
[313810458,1707733892253,-1593.69,0.00024872,2]
[313810459,1707733892263,-4294.35,0.00024872,2]
[313810460,1707733892273,-500.0,0.00024872,2]
[313810461,1707733892283,-532.5,0.00024872,2]
[313810462,1707733892293,-7674.53,0.00024872,2]
[313810463,1707733892303,-500.0,0.00024872,2]
[313810464,1707733892313,-1849.0,0.00024872,2]
[313810465,1707733892322,-500.0,0.00024872,2]
[313810466,1707733892332,-554.6,0.00024872,2]
[313810467,1707733892344,-4590.03,0.00024872,2]
[313810468,1707733892354,-500.0,0.00024872,2]
[313810469,1707733892363,-635.01,0.00024872,2]
[313810470,1707733892374,-500.0,0.00024872,2]
[313810471,1707733892384,-3517.53,0.00024872,2]
[313810472,1707733892394,-3960.55,0.00024872,2]
[313810473,1707733892405,-7666.46,0.00024872,2]
[313810474,1707733892416,-500.0,0.00024872,2]
[313810475,1707733892426,-2656.74,0.00024872,2]
[313810476,1707733892437,-500.0,0.00024872,2]
[313810477,1707733892447,-1202.46,0.00024872,2]
[313810478,1707733892458,-886.56,0.00024872,2]
[313810479,1707733892469,-2276.55,0.00024872,2]
[313810480,1707733892479,-1511.64,0.00024872,2]
[313810481,1707733892489,-553.24,0.00024872,2]
[313810482,1707733892499,-649.19,0.00024872,2]
[313810483,1707733892510,-597.39,0.00024873,2]
[313810484,1707733892521,-500.0,0.00024873,2]
[313810485,1707733892531,-500.0,0.00024873,2]
[313810486,1707733892542,-500.0,0.00024873,2]
[313810487,1707733892552,-629.53,0.00024873,2]
[313810488,1707733892562,-600.84,0.00024873,2]
[313810489,1707733892571,-500.0,0.00024873,2]
[313810490,1707733892581,-906.41,0.00024873,2]
[313810491,1707733892593,-575.51,0.00024873,2]
[313810492,1707733892603,-497.92,0.00024873,2]
[313810493,1707733892612,-548.69,0.00024873,2]
[313810494,1707733892622,-537.39,0.00024873,2]
[313810495,1707733892632,-500.0,0.00024873,2]
[313810496,1707733892641,-1325.99,0.00024873,2]
[313810497,1707733892650,-500.0,0.00024873,2]
[313810498,1707733892660,-500.0,0.00024873,2]
[313810499,1707733892669,-563.03,0.00024873,2]
[313810500,1707733892678,-500.0,0.00024873,2]
[313810501,1707733892688,-500.0,0.00024873,2]
[313810502,1707733892698,-518.75,0.00024873,2]
[313810503,1707733892708,-500.0,0.00024873,2]
[313810504,1707733892718,-557.97,0.00024873,2]
[313810505,1707733892728,-500.0,0.00024873,2]
[313810506,1707733892737,-500.0,0.00024873,2]
[313810507,1707733892747,-431.22,0.00024873,2]
[313810508,1707733892758,-500.0,0.00024873,2]
[313810509,1707733892768,-732.69,0.00024873,2]
[313810510,1707733892778,-592.76,0.00024873,2]
[313810511,1707733892788,-642.64,0.00024873,2]
[313810512,1707733892798,-500.0,0.00024873,2]
[313810513,1707733892808,-500.0,0.00024873,2]
[313810514,1707733892818,-536.26,0.00024873,2]
[313810515,1707733892828,-500.0,0.00024873,2]
[313810516,1707733892839,-500.0,0.00024873,2]
[313810517,1707733892849,-629.48,0.00024873,2]
[313810518,1707733892859,-517.86,0.00024873,2]
[313810519,1707733892869,-715.83,0.00024873,2]
[313810520,1707733892880,-500.0,0.00024873,2]
[313810521,1707733892890,-500.0,0.00024873,2]
[313810522,1707733892900,-655.78,0.00024873,2]
[313810523,1707733892910,-703.17,0.00024873,2]
[313810524,1707733892920,-679.0,0.00024873,2]
[313810525,1707733892930,-500.0,0.00024873,2]
[313810526,1707733892940,-555.32,0.00024873,2]
[313810527,1707733892950,-913.49,0.00024873,2]
[313810528,1707733892960,-500.0,0.00024873,2]
[313810529,1707733892969,-608.92,0.00024873,2]
[313810530,1707733892979,-673.16,0.00024873,2]
[313810531,1707733892989,-500.0,0.00024873,2]
[313810532,1707733892999,-500.0,0.00024873,2]
[313810533,1707733893009,-500.0,0.00024873,2]
[313810534,1707733893019,-500.0,0.00024873,2]
[313810535,1707733893029,-500.0,0.00024873,2]
[313810536,1707733893040,-500.0,0.00024873,2]
[313810537,1707733893050,-500.0,0.00024873,2]
[313810538,1707733893059,-500.0,0.00024873,2]
[313810539,1707733893069,-668.92,0.00024873,2]
[313810540,1707733893079,-500.0,0.00024873,2]
[313810541,1707733893090,-844.39,0.00024873,2]
[313810542,1707733893101,-1147.14,0.00024873,2]
[313810543,1707733893113,-755.97,0.00024873,2]
[313810544,1707733893123,-500.0,0.00024873,2]
[313810545,1707733893133,-500.0,0.00024873,2]
[313810546,1707733893143,-667.47,0.00024873,2]
[313810547,1707733893154,-605.66,0.00024873,2]
[313810548,1707733893164,-886.37,0.00024873,2]
[313810549,1707733893174,-500.0,0.00024873,2]
[313810550,1707733893185,-500.0,0.00024873,2]
[313810551,1707733893197,-642.83,0.00024873,2]
[313810552,1707733893207,-632.75,0.00024873,2]
[313810553,1707733893217,-500.0,0.00024873,2]
[313810554,1707733893227,-500.0,0.00024873,2]
[313810555,1707733893237,-929.38,0.00024873,2]
[313810556,1707733893248,-744.65,0.00024873,2]
[313810557,1707733893258,-500.0,0.00024873,2]
[313810558,1707733893269,-500.0,0.00024873,2]
[313810559,1707733893279,-500.0,0.00024873,2]
[313810560,1707733893289,-500.0,0.00024873,2]
[313810561,1707733893300,-500.0,0.00024873,2]
[313810562,1707733893310,-500.0,0.00024873,2]
[313810563,1707733893319,-500.0,0.00024873,2]
[313810564,1707733893329,-819.75,0.00024873,2]
[313810565,1707733893342,-500.0,0.00024873,2]
[313810566,1707733893351,-537.08,0.00024873,2]
[313810567,1707733893362,-500.0,0.00024873,2]
[313810568,1707733893372,-150.0,0.00024873,2]
[313810569,1707733893383,-500.0,0.00024873,2]
[313810570,1707733893393,-10329.42,0.00024873,2]
[313810571,1707733893403,-500.0,0.00024873,2]
[313810572,1707733893413,-580.36,0.00024873,2]
[313810573,1707733893423,-510.94,0.00024873,2]
[313810574,1707733893433,-500.0,0.00024873,2]
[313810575,1707733893443,-3105.06,0.00024873,2]
[313810576,1707733893453,-500.0,0.00024873,2]
[313810577,1707733893463,-773.66,0.00024873,2]
[313810578,1707733893473,-3271.15,0.00024873,2]
[313810579,1707733893483,-1844.55,0.00024873,2]
[313810580,1707733893494,-500.0,0.00024873,2]
[313810581,1707733893504,-940.32,0.00024873,2]
[313810582,1707733893514,-2970.51,0.00024873,2]
[313810583,1707733893525,-500.0,0.00024873,2]
[313810584,1707733893536,-539.87,0.00024873,2]
[313810585,1707733893546,-1834.77,0.00024873,2]
[313810586,1707733893557,-682.92,0.00024873,2]
[313810587,1707733893567,-724.16,0.00024873,2]
[313810588,1707733893577,-500.0,0.00024873,2]
[313810589,1707733893588,-2718.91,0.00024873,2]
[313810590,1707733893598,-500.0,0.00024873,2]
[313810591,1707733893609,-629.24,0.00024873,2]
[313810592,1707733893619,-2450.63,0.00024873,2]
[313810593,1707733893629,-500.0,0.00024873,2]
[313810594,1707733893640,-787.17,0.00024873,2]
[313810595,1707733893650,-3019.8,0.00024873,2]
[313810596,1707733893660,-500.0,0.00024873,2]
[313810597,1707733893671,-500.0,0.00024873,2]
[313810598,1707733893681,-687.94,0.00024873,2]
[313810599,1707733893692,-535.89,0.00024873,2]
[313810600,1707733893702,-500.0,0.00024873,2]
[313810601,1707733893712,-3020.97,0.00024873,2]
[313810602,1707733893723,-500.84,0.00024873,2]
[313810603,1707733893733,-500.0,0.00024873,2]
[313810604,1707733893743,-745.25,0.00024873,2]
[313810605,1707733893754,-644.11784583,0.00024873,2]
[313810606,1707733893765,-1416.34,0.00024873,2]
[313810607,1707733893775,-630.19,0.00024873,2]
[313810608,1707733893785,-500.0,0.00024873,2]
[313810609,1707733893796,-1694.61,0.00024873,2]
[313810610,1707733893806,-618.63,0.00024873,2]
[313810611,1707733893817,-581.03,0.00024873,2]
[313810612,1707733893827,-500.0,0.00024873,2]
[313810613,1707733893837,-1109.46,0.00024873,2]
[313810614,1707733893847,-500.0,0.00024873,2]
[313810615,1707733893858,-500.0,0.00024873,2]
[313810616,1707733893869,-500.0,0.00024873,2]
[313810617,1707733893880,-5547.02,0.00024873,2]
[313810618,1707733893891,-500.0,0.00024873,2]
[313810619,1707733893901,-500.0,0.00024873,2]
[313810620,1707733893913,-500.0,0.00024873,2]
[313810621,1707733893924,-639.7,0.00024873,2]
[313810622,1707733893935,-10421.15,0.00024873,2]
[313810623,1707733893946,-448.08,0.00024873,2]
[313810624,1707733894146,-995.68,0.00024873,2]
[313810625,1707733894157,-500.0,0.00024873,2]
[313810626,1707733894166,-833.12,0.00024873,2]
[313810627,1707733894177,-500.0,0.00024873,2]
[313810628,1707733894186,-500.0,0.00024873,2]
[313810629,1707733894196,-2262.56,0.00024873,2]
[313810630,1707733894207,-563.82,0.00024873,2]
[313810631,1707733894217,-588.41,0.00024873,2]
[313810632,1707733894227,-500.0,0.00024873,2]
[313810633,1707733894237,-500.0,0.00024873,2]
[313810634,1707733894247,-1609.22,0.00024873,2]
[313810635,1707733894257,-500.0,0.00024873,2]
[313810636,1707733894267,-807.99,0.00024873,2]
[313810637,1707733894277,-500.0,0.00024873,2]
[313810638,1707733894288,-500.0,0.00024873,2]
[313810639,1707733894297,-519.62,0.00024873,2]
[313810640,1707733894307,-1981.21,0.00024873,2]
[313810641,1707733894316,-500.0,0.00024873,2]
[313810642,1707733894325,-797.72,0.00024873,2]
[313810643,1707733894334,-500.0,0.00024873,2]
[313810644,1707733894345,-671.69,0.00024873,2]
[313810645,1707733894355,-500.0,0.00024873,2]
[313810646,1707733894365,-815.55,0.00024873,2]
[313810647,1707733894374,-729.69,0.00024873,2]
[313810648,1707733894384,-2389.73,0.00024873,2]
[313810649,1707733894394,-718.0,0.00024873,2]
[313810650,1707733894404,-500.0,0.00024873,2]
[313810651,1707733894413,-664.45,0.00024873,2]
[313810652,1707733894423,-788.41,0.00024873,2]
[313810653,1707733894433,-1199.43,0.00024873,2]
[313810654,1707733894443,-500.0,0.00024873,2]
[313810655,1707733894452,-617.79,0.00024873,2]
[313810656,1707733894462,-534.74,0.00024873,2]
[313810657,1707733894472,-13152.32,0.00024873,2]
[313810658,1707733894482,-627.06,0.00024873,2]
[313810659,1707733894492,-794.39,0.00024873,2]
[313810660,1707733894502,-5987.72,0.00024873,2]
[313810661,1707733894511,-500.0,0.00024873,2]
[313810662,1707733894522,-500.0,0.00024874,2]
[313810663,1707733894531,-500.0,0.00024874,2]
[313810664,1707733894541,-500.0,0.00024874,2]
[313810665,1707733894550,-500.0,0.00024874,2]
[313810666,1707733894559,-500.0,0.00024874,2]
[313810667,1707733894569,-500.0,0.00024874,2]
[313810668,1707733894578,-500.0,0.00024874,2]
[313810669,1707733894587,-500.0,0.00024874,2]
[313810670,1707733894598,-580.7,0.00024874,2]
[313810671,1707733894608,-500.0,0.00024874,2]
[313810672,1707733894617,-560.16,0.00024874,2]
[313810673,1707733894626,-500.0,0.00024874,2]
[313810674,1707733894635,-500.0,0.00024874,2]
[313810675,1707733894644,-500.0,0.00024874,2]
[313810676,1707733894654,-500.0,0.00024874,2]
[313810677,1707733894663,-305.09,0.00024874,2]
[313810678,1707733894671,-502.1,0.00024874,2]
[313810679,1707733894680,-500.0,0.00024874,2]
[313810680,1707733894689,-200.0,0.000249,9]
[313810681,1707733894699,-4757.85269042,0.0002491,2]
[313810682,1707733894709,-566.03,0.00024957,2]
[313810683,1707733894718,-20000.0,0.00024975,2]
[313810684,1707733894728,-946.31124793,0.00025,2]
[313810685,1707733894738,-1909.75102483,0.00025,2]
[313810686,1707733894747,-1592.09246113,0.00025,2]
[313810687,1707733894757,-168.83874415,0.00025,2]
[313810688,1707733894766,-163.50394839,0.00025,2]
[313810689,1707733894775,-164.27960383,0.00025,2]
[313810690,1707733894784,-306.12417045,0.00025,2]
[313810691,1707733894794,-667.15868642,0.00025,7]
[313810692,1707733894803,-380.79,0.00025,2]
[313810693,1707733894813,-1256.25370781,0.00025,2]
[313810694,1707733894822,-750.0,0.00025,3]
[313810695,1707733894831,-256.8,0.00025,2]
[313810696,1707733894842,-152.356,0.00025,2]
[313810697,1707733894851,-18774.42423588,0.00025,4]
[313810698,1707733894861,-1945.801161,0.00025,2]
[313810699,1707733894871,-1881.0,0.00025,2]
[313810700,1707733894881,-3635.54632973,0.00025,2]
[313810701,1707733894890,-496.14061983,0.00025047,2]
[313810702,1707733894900,-747.6146008,0.00025047,2]
[313810703,1707733894910,-252.60336772,0.00025047,2]
[313810704,1707733894920,-174.36604497,0.00025047,2]
[313810705,1707733894930,-46131.32320405,0.00025055,2]
[313810706,1707733894940,-1462.16430252,0.00025129,2]
[313810707,1707733894950,-500.0,0.00025146,2]
[313810708,1707733894960,-500.0,0.00025146,2]
[313810709,1707733894970,-500.0,0.00025146,2]
[313810710,1707733894980,-500.0,0.00025146,2]
[313810711,1707733894989,-500.0,0.00025146,2]
[313810712,1707733894999,-500.0,0.00025146,2]
[313810713,1707733895009,-500.0,0.00025146,2]
[313810714,1707733895019,-500.0,0.00025146,2]
[313810715,1707733895029,-238.00511318,0.00025146,2]
[313810716,1707733895038,-500.0,0.00025146,2]
[313810717,1707733895048,-500.0,0.00025146,2]
[313810718,1707733895058,-500.0,0.00025146,2]
[313810719,1707733895067,-500.0,0.00025146,2]
[313810720,1707733895077,-461.20347708,0.00025146,2]
[313810721,1707733895087,-527.72038284,0.00025146,2]
[313810722,1707733895097,-500.0,0.00025146,2]
[313810723,1707733895108,-477.80252416,0.00025146,2]
[313810724,1707733895120,-500.0,0.00025146,2]
[313810725,1707733895129,-500.0,0.00025146,2]
[313810726,1707733895139,-500.0,0.00025146,2]
[313810727,1707733895149,-489.85640109,0.00025146,2]
[313810728,1707733895159,-500.0,0.00025146,2]
[313810729,1707733895170,-500.0,0.00025146,2]
[313810730,1707733895179,-850.96,0.00025146,2]
[313810731,1707733895191,-2929.74,0.00025146,2]
[313810732,1707733895201,-500.0,0.00025146,2]
[313810733,1707733895210,-1465.24,0.00025146,2]
[313810734,1707733895221,-2746.39,0.00025146,2]
[313810735,1707733895231,-3120.44,0.00025146,2]
[313810736,1707733895242,-1968.61,0.00025146,2]
[313810737,1707733895252,-500.0,0.00025146,2]
[313810738,1707733895262,-1245.93,0.00025146,2]
[313810739,1707733895272,-8220.4,0.00025146,2]
[313810740,1707733895282,-834.79,0.00025146,2]
[313810741,1707733895291,-500.0,0.00025146,2]
[313810742,1707733895301,-4043.08,0.00025146,2]
[313810743,1707733895311,-4209.02,0.00025146,2]
[313810744,1707733895320,-500.0,0.00025146,2]
[313810745,1707733895330,-3622.67,0.00025146,2]
[313810746,1707733895340,-30584.48,0.00025146,2]
[313810747,1707733895349,-622.6,0.00025146,2]
[313810748,1707733895358,-500.0,0.00025146,2]
[313810749,1707733895368,-2489.84,0.00025146,2]
[313810750,1707733895379,-658.01,0.00025146,2]
[313810751,1707733895388,-807.65,0.00025146,2]
[313810752,1707733895398,-500.0,0.00025146,2]
[313810753,1707733895407,-500.0,0.00025146,2]
[313810754,1707733895417,-500.0,0.00025146,2]
[313810755,1707733895427,-670.96,0.00025146,2]
[313810756,1707733895436,-500.0,0.00025146,2]
[313810757,1707733895446,-592.04,0.00025146,2]
[313810758,1707733895456,-500.0,0.00025146,2]
[313810759,1707733895465,-500.0,0.00025146,2]
[313810760,1707733895474,-500.0,0.00025146,2]
[313810761,1707733895484,-550.02,0.00025146,2]
[313810762,1707733895493,-5289.57,0.00025146,2]
[313810763,1707733895503,-654.37,0.00025146,2]
[313810764,1707733895513,-500.0,0.00025146,2]
[313810765,1707733895522,-876.87,0.00025146,2]
[313810766,1707733895532,-2205.41,0.00025146,2]
[313810767,1707733895542,-650.89,0.00025146,2]
[313810768,1707733895551,-4539.55,0.00025146,2]
[313810769,1707733895561,-2620.05,0.00025146,2]
[313810770,1707733895571,-806.86,0.00025146,2]
[313810771,1707733895581,-10402.09,0.00025146,2]
[313810772,1707733895590,-1376.01,0.00025146,2]
[313810773,1707733895600,-1175.96,0.00025146,2]
[313810774,1707733895610,-500.0,0.00025146,2]
[313810775,1707733895620,-529.62,0.00025146,2]
[313810776,1707733895630,-829.4,0.00025146,2]
[313810777,1707733895641,-1891.45,0.00025146,2]
[313810778,1707733895650,-2658.88,0.00025146,2]
[313810779,1707733895661,-500.0,0.00025146,2]
[313810780,1707733895671,-3181.3,0.00025146,2]
[313810781,1707733895681,-1134.53,0.00025146,2]
[313810782,1707733895691,-500.0,0.00025146,2]
[313810783,1707733895701,-1360.04,0.00025146,2]
[313810784,1707733895712,-1409.13,0.00025146,2]
[313810785,1707733895722,-15681.69,0.00025146,2]
[313810786,1707733895733,-891.67,0.00025146,2]
[313810787,1707733895743,-656.74,0.00025146,2]